fUST/lending_fUST_20240906
["ID","MTS","AMOUNT","RATE_DAILY","PERIOD"]
[337307991,1725592207671,-320.0,0.00041918,120]
[337307992,1725592207712,-320.0,0.00041918,120]
[337307993,1725592207739,-320.0,0.00041918,120]
[337307994,1725592207768,-320.0,0.00041918,120]
[337307995,1725592207794,-320.0,0.00041918,120]
[337307996,1725592207819,-320.0,0.00041918,120]
[337307997,1725592207844,-320.0,0.00041918,120]
[337307998,1725592207871,-320.0,0.00041918,120]
[337307999,1725592207898,-320.0,0.00041918,120]
[337308000,1725592207924,-320.0,0.00041918,120]
[337308001,1725592207951,-320.0,0.00041918,120]
[337308002,1725592207978,-320.0,0.00041918,120]
[337308003,1725592208007,-320.0,0.00041918,120]
[337308004,1725592208033,-320.0,0.00041918,120]
[337308005,1725592208071,-320.0,0.00041918,120]
[337308006,1725592208120,-320.0,0.00041918,120]
[337308007,1725592208163,-320.0,0.00041918,120]
[337308008,1725592208204,-320.0,0.00041918,120]
[337308009,1725592208245,-320.0,0.00041918,120]
[337308010,1725592208280,-320.0,0.00041918,120]
[337308011,1725592208309,-320.0,0.00041918,120]
[337308012,1725592208336,-320.0,0.00041918,120]
[337308013,1725592208362,-320.0,0.00041918,120]
[337308014,1725592208388,-320.0,0.00041918,120]
[337308015,1725592208548,-320.0,0.00041918,120]
[337308016,1725592208574,-320.0,0.00041918,120]
[337308017,1725592208600,-320.0,0.00041918,120]
[337308018,1725592208626,-320.0,0.00041918,120]
[337308019,1725592208669,-320.0,0.00041918,120]
[337308020,1725592208713,-320.0,0.00041918,120]
[337308021,1725592208765,-320.0,0.00041918,120]
[337308022,1725592208805,-320.0,0.00041918,120]
[337308023,1725592208846,-320.0,0.00041918,120]
[337308024,1725592208877,-320.0,0.00041918,120]
[337308025,1725592208902,-320.0,0.00041918,120]
[337308026,1725592208927,-320.0,0.00041918,120]
[337308027,1725592208955,-320.0,0.00041918,120]
[337308029,1725592208990,-320.0,0.00041918,120]
[337308030,1725592209019,-320.0,0.00041918,120]
[337308031,1725592209045,-320.0,0.00041918,120]
[337308032,1725592209071,-320.0,0.00041918,120]
[337308033,1725592209098,-320.0,0.00041918,120]
[337308034,1725592209124,-320.0,0.00041918,120]
[337308035,1725592209149,-320.0,0.00041918,120]
[337308036,1725592209175,-320.0,0.00041918,120]
[337308037,1725592209200,-320.0,0.00041918,120]
[337308038,1725592209224,-320.0,0.00041918,120]
[337308039,1725592209252,-320.0,0.00041918,120]
[337308040,1725592209278,-153.0,0.00041918,120]
[337308041,1725592209304,-153.0,0.00041918,120]
[337308042,1725592209332,-153.0,0.00041918,120]
[337308043,1725592209359,-500000.0,0.00042,120]
[337308044,1725592209388,-1000.0,0.00042,120]
[337308045,1725592209414,-250.0,0.00042,30]
[337308046,1725592209449,-500.0,0.00042281,30]
[337308047,1725592209476,-151.0,0.00042932,120]
[337308048,1725592209507,-500000.0,0.00043,120]
[337308049,1725592209533,-1000.0,0.00043,120]
[337308050,1725592209562,-495.25,0.000434,33]
[337308051,1725592209590,-495.25,0.000434,33]
[337308052,1725592209619,-495.25,0.000434,33]
[337308053,1725592209648,-495.25,0.000434,33]
[337308054,1725592209677,-495.25,0.000434,33]
[337308055,1725592209706,-495.25,0.000434,33]
[337308056,1725592209739,-495.25,0.000434,33]
[337308057,1725592209769,-495.25,0.000434,33]
[337308058,1725592209800,-495.25,0.000434,33]
[337308059,1725592209830,-495.25,0.000434,33]
[337308060,1725592209860,-495.25,0.000434,33]
[337308061,1725592209890,-495.25,0.000434,33]
[337308062,1725592209920,-495.25,0.000434,33]
[337308063,1725592209950,-495.25,0.000434,33]
[337308064,1725592209982,-495.25,0.000434,33]
[337308065,1725592210014,-495.25,0.000434,33]
[337308066,1725592210043,-495.25,0.000434,33]
[337308067,1725592210072,-495.25,0.000434,33]
[337308068,1725592210104,-495.25,0.000434,33]
[337308069,1725592210144,-495.25,0.000434,33]
[337308070,1725592210182,-495.25,0.000434,33]
[337308071,1725592210215,-495.25,0.000434,33]
[337308072,1725592210252,-495.25,0.000434,33]
[337308073,1725592210288,-495.25,0.000434,33]
[337308074,1725592210323,-151.0,0.00043699,120]
[337308075,1725592210354,-600.0,0.00043835,120]
[337308076,1725592210386,-600.0,0.00043835,120]
[337308077,1725592210420,-600.0,0.00043835,120]
[337308078,1725592210453,-600.63513648,0.00043835,120]
[337308079,1725592210484,-2024.43305255,0.00043835,30]
[337308080,1725592210516,-1281.56,0.00043835,120]
[337308081,1725592210551,-1000.0,0.00043835,120]
[337308082,1725592210585,-1000.0,0.00043835,120]
[337308083,1725592210621,-1000.0,0.00043835,120]
[337308084,1725592210656,-1000.0,0.00043835,120]
[337308085,1725592210686,-1000.0,0.00043835,120]
[337308086,1725592210716,-1000.0,0.00043835,120]
[337308087,1725592210750,-1000.0,0.00043835,120]
[337308088,1725592210783,-1000.0,0.00043835,120]
[337308089,1725592210814,-1000.0,0.00043835,120]
[337308090,1725592210846,-1000.0,0.00043835,120]
[337308091,1725592210878,-974.25949422,0.00043835,120]
[337308092,1725592210909,-945.046615,0.00043835,30]
[337308093,1725592210939,-2000.93628492,0.00043835,120]
[337308094,1725592210967,-1587.0025383,0.00043835,120]
[337308095,1725592210998,-1310.75042531,0.00044,120]
[337308096,1725592211031,-500000.0,0.00044,120]
[337308097,1725592211063,-500.0,0.00044,120]
[337308098,1725592211094,-1000.0,0.00044,120]
[337308099,1725592211123,-250.0,0.00044,30]
[337308100,1725592211155,-1281.56,0.00044109,120]
[337308101,1725592211185,-1281.56,0.00044383,120]
[337308102,1725592211216,-500.0,0.00044507,30]
[337308103,1725592211249,-151.0,0.00044548,120]
[337308104,1725592211279,-500.0,0.00044657,30]
[337308105,1725592211309,-1281.56,0.00044657,120]
[337308106,1725592211338,-151.94051932,0.000447,120]
[337308107,1725592211367,-1000.0,0.000449,120]
[337308108,1725592211398,-1281.56,0.00044931,120]
[337308109,1725592211427,-3058.0,0.0004497,120]
[337308110,1725592211459,-500000.0,0.00045,120]
[337308111,1725592211489,-275.49059662,0.00045,30]
[337308112,1725592211518,-10000.0,0.00045,50]
[337308113,1725592211547,-600.0,0.00045,120]
[337308114,1725592211575,-1000.0,0.00045,120]
[337308115,1725592211605,-500.0,0.00045205,33]
[337308116,1725592211636,-1281.56,0.00045205,120]
[337308117,1725592211666,-23093.68,0.000453,30]
[337308118,1725592211695,-152.0,0.00045404,31]
[337308119,1725592211723,-245.722621,0.00045407,120]
[337308120,1725592211967,-1281.56,0.00045479,120]
[337308121,1725592211994,-500000.0,0.000455,120]
[337308122,1725592212023,-500.0,0.00045753,36]
[337308123,1725592212054,-1281.56,0.00045753,120]
[337308124,1725592212081,-163.31571671,0.00046,120]
[337308125,1725592212106,-225898.91318915,0.00046,120]
[337308127,1725592217287,-1320.0,0.00040093,30]
[337308128,1725592217312,-427.138,0.00041918,30]
[337308129,1725592217339,-274101.08681085,0.00046,120]
[337308130,1725592217366,-500000.0,0.00046,120]
[337308131,1725592217392,-1000.0,0.00046,120]
[337308132,1725592217417,-250.0,0.00046,30]
[337308133,1725592217443,-1281.56,0.00046027,120]
[337308134,1725592217469,-151.0,0.00046164,120]
[337308135,1725592217495,-500.0,0.00046301,39]
[337308136,1725592217520,-1281.56,0.00046301,120]
[337308137,1725592217545,-151.0,0.00046438,120]
[337308138,1725592217571,-500000.0,0.000465,120]
[337308139,1725592217596,-1281.56,0.00046575,120]
[337308140,1725592217621,-956.07433085,0.000468,120]
[337308141,1725592217645,-1682.59134726,0.000468,120]
[337308142,1725592217669,-895.513478,0.000468,60]
[337308143,1725592217693,-2000.93628492,0.00046835,120]
[337308144,1725592217717,-500.0,0.00046849,42]
[337308145,1725592217744,-1281.56,0.00046849,120]
[337308146,1725592217769,-500.0,0.00046849,30]
[337308147,1725592217794,-500.0,0.00046876,120]
[337308148,1725592217820,-500.0,0.00046876,120]
[337308149,1725592217845,-500.0,0.00046876,120]
[337308150,1725592217870,-500.0,0.00046876,120]
[337308151,1725592217895,-500.0,0.00046876,120]
[337308152,1725592217920,-500.0,0.00046876,120]
[337308153,1725592217947,-500.0,0.00046876,120]
[337308154,1725592217973,-500.0,0.00046876,120]
[337308155,1725592218117,-500.0,0.00046876,120]
[337308156,1725592218152,-500.0,0.00046876,120]
[337308157,1725592218180,-500.0,0.00046876,120]
[337308158,1725592218206,-619.84169813,0.00046876,120]
[337308159,1725592218235,-500000.0,0.00047,120]
[337308160,1725592218261,-250.0,0.00047,120]
[337308161,1725592218288,-1000.0,0.00047,120]
[337308162,1725592218314,-1281.56,0.00047123,120]
[337308163,1725592218340,-500.0,0.00047397,45]
[337308164,1725592218367,-1281.56,0.00047397,120]
[337308165,1725592218393,-463.891139,0.00047489,120]
[337308166,1725592218420,-500000.0,0.000475,120]
[337308167,1725592218446,-183.48044621,0.000475,120]
[337308168,1725592218473,-1281.56,0.00047671,120]
[337308169,1725592218499,-151.0,0.00047781,120]
[337308170,1725592218524,-2707.0,0.00047888,120]
[337308171,1725592218550,-67585.96467907,0.000479,30]
[337308172,1725592218576,-500.0,0.00047945,48]
[337308173,1725592218603,-1281.56,0.00047945,120]
[337308174,1725592218629,-200.0,0.00047978,120]
[337308175,1725592218654,-165000.57915126,0.00047999,120]
[337308176,1725592218680,-1018.43819334,0.00048,48]
[337308177,1725592218707,-3858.11602771,0.00048,120]
[337308178,1725592218734,-500000.0,0.00048,120]
[337308179,1725592218759,-57065.16991343,0.00048,120]
[337308180,1725592218784,-1024.93930029,0.00048,120]
[337308181,1725592218809,-1000.0,0.00048,120]
[337308182,1725592218836,-500000.0,0.00048,120]
[337308183,1725592218862,-614.98,0.00048,30]
[337308184,1725592218888,-250.0,0.00048,30]
[337308185,1725592218915,-1281.56,0.00048219,120]
[337308186,1725592218941,-500.0,0.00048493,51]
[337308187,1725592218968,-1281.56,0.00048493,120]
[337308188,1725592218997,-392755.65919968,0.000485,120]
[337308189,1725592224768,-107244.34080032,0.000485,120]
[337308190,1725592224795,-1281.56,0.00048767,120]
[337308191,1725592224822,-23093.68,0.000488,30]
[337308192,1725592224848,-1060.56386709,0.000488,120]
[337308193,1725592224873,-1796.02167288,0.000488,120]
[337308194,1725592224898,-34998.99999992,0.000488,120]
[337308195,1725592224925,-100484.55433599,0.0004888,30]
[337308196,1725592224954,-1000.0,0.00048999,120]
[337308197,1725592224980,-215.38266506,0.00049,120]
[337308198,1725592225007,-2000.0,0.00049,120]
[337308199,1725592225033,-1111.0749216,0.00049,120]
[337308200,1725592225059,-20000.0,0.00049,120]
[337308201,1725592225085,-188.74855856,0.00049,120]
[337308202,1725592225111,-37289.49201467,0.00049,30]
[337308203,1725592225138,-1000.0,0.00049,120]
[337308204,1725592225164,-500000.0,0.00049,120]
[337308205,1725592225190,-50000.0,0.00049,30]
[337308206,1725592225215,-50000.0,0.00049,30]
[337308207,1725592225361,-2000.0,0.00049,120]
[337308208,1725592225388,-2000.0,0.00049,120]
[337308209,1725592225413,-2000.0,0.00049,120]
[337308210,1725592225440,-2000.0,0.00049,120]
[337308211,1725592225466,-2000.0,0.00049,120]
[337308212,1725592225493,-2000.0,0.00049,120]
[337308213,1725592225520,-2000.0,0.00049,60]
[337308214,1725592225546,-2000.0,0.00049,60]
[337308215,1725592225572,-2000.0,0.00049,60]
[337308216,1725592225598,-193.42083445,0.00049041,54]
[337308217,1725592225624,-1281.56,0.00049041,120]
[337308218,1725592225652,-495.25,0.000491,45]
[337308219,1725592225681,-495.25,0.000491,45]
[337308220,1725592225709,-495.25,0.000491,45]
[337308221,1725592225737,-495.25,0.000491,45]
[337308222,1725592225766,-495.25,0.000491,45]
[337308223,1725592225796,-495.25,0.000491,45]
[337308224,1725592225824,-495.25,0.000491,45]
[337308225,1725592225852,-495.25,0.000491,45]
[337308226,1725592225880,-495.25,0.000491,45]
[337308227,1725592225908,-495.25,0.000491,45]
[337308228,1725592225936,-495.25,0.000491,45]
[337308229,1725592225965,-495.25,0.000491,45]
[337308230,1725592225994,-495.25,0.000491,45]
[337308231,1725592226026,-495.25,0.000491,45]
[337308232,1725592226054,-495.25,0.000491,45]
[337308233,1725592226083,-495.25,0.000491,45]
[337308234,1725592226110,-151.0,0.00049178,120]
[337308235,1725592226137,-1000.0,0.00049315,120]
[337308236,1725592226163,-479.74515959,0.00049315,90]
[337308237,1725592226190,-500.0,0.00049315,30]
[337308238,1725592226216,-500.0,0.00049315,30]
[337308239,1725592226242,-3000.0,0.00049315,120]
[337308240,1725592226268,-1281.56,0.00049315,120]
[337308241,1725592226293,-500.0,0.00049315,31]
[337308242,1725592226319,-500.0,0.00049315,31]
[337308243,1725592226346,-500.0,0.00049315,31]
[337308244,1725592226370,-500.0,0.00049315,31]
[337308245,1725592226395,-500.0,0.00049315,31]
[337308246,1725592226420,-261.37785757,0.00049315,31]
[337308247,1725592226445,-306.81976195,0.00049315,31]
[337308248,1725592226469,-500.0,0.00049315,120]
[337308249,1725592226495,-500.0,0.00049315,120]
[337308250,1725592226520,-500.0,0.00049315,120]
[337308251,1725592226545,-500.0,0.00049315,120]
[337308252,1725592226569,-500.0,0.00049315,120]
[337308253,1725592226594,-500.0,0.00049315,120]
[337308254,1725592226618,-500.0,0.00049315,120]
[337308255,1725592226643,-511.9418489,0.00049315,120]
[337308256,1725592226668,-151.0,0.00049397,120]
[337308257,1725592226693,-1281.56,0.00049589,120]
[337308258,1725592226718,-2000.93628492,0.00049835,120]
[337308259,1725592226749,-1281.56,0.00049863,120]
[337308260,1725592226774,-8644.85016237,0.00049982,90]
[337308261,1725592226799,-1000.0,0.00049999,120]
[337308262,1725592226827,-10000.0,0.0005,61]
[337308263,1725592226851,-193.91384696,0.0005,30]
[337308264,1725592226875,-187.72313519,0.0005,120]
[337308265,1725592226900,-518.30719389,0.0005,120]
[337308266,1725592226924,-1000.0,0.0005,120]
[337308267,1725592226950,-600.0,0.0005,120]
[337308268,1725592226974,-500.0,0.0005,120]
[337308269,1725592226999,-5000.0,0.0005,120]
[337308270,1725592227026,-1035.22012233,0.0005,120]
[337308271,1725592227051,-1000.0,0.0005,120]
[337308272,1725592227074,-1000.0,0.0005,120]
[337308273,1725592227101,-1000.0,0.0005,120]
[337308274,1725592227125,-3000.0,0.0005,120]
[337308275,1725592227151,-500000.0,0.0005,120]
[337308276,1725592227176,-328.0,0.0005,36]
[337308277,1725592227202,-9005.30508048,0.0005,30]
[337308278,1725592227227,-250.0,0.0005,30]
[337308279,1725592227255,-1281.64485698,0.00050136,120]
[337308280,1725592227280,-500.0,0.000503,60]
[337308281,1725592227305,-500000.0,0.0005044,30]
[337308282,1725592227330,-1000.0,0.000505,120]
[337308283,1725592227355,-692.53485661,0.00050684,120]
[337308284,1725592227382,-600.0,0.00051,120]
[337308285,1725592227407,-1000.0,0.00051,120]
[337308286,1725592227432,-1000.0,0.00051,120]
[337308287,1725592227456,-136574.2,0.00051,30]
[337308288,1725592227481,-3000.0,0.00051,85]
[337308289,1725592227507,-3000.0,0.0005101,85]
[337308290,1725592227532,-151.0,0.00051014,120]
[337308291,1725592227558,-3000.0,0.0005102,85]
[337308292,1725592227583,-3000.0,0.0005103,85]
[337308293,1725592227608,-3000.0,0.0005104,85]
[337308294,1725592227634,-3000.0,0.0005105,85]
[337308295,1725592227660,-3000.0,0.0005106,85]
[337308296,1725592227685,-3000.0,0.0005107,85]
[337308297,1725592227710,-5181.583796,0.0005108,85]
[337308298,1725592227734,-152.79858638,0.00051282,82]
[337308299,1725592227760,-200.0,0.00051326,120]
[337308300,1725592227787,-245.722621,0.00051513,120]
[337308301,1725592227817,-1000.0,0.0005178,120]
[337308302,1725592227845,-1000.0,0.0005178,120]
[337308303,1725592227873,-1000.0,0.0005178,120]
[337308304,1725592228022,-1000.0,0.0005178,120]
[337308305,1725592228049,-1078.66499304,0.0005178,120]
[337308306,1725592228077,-500.0,0.00051781,30]
[337308307,1725592228105,-500.0,0.00051781,30]
[337308308,1725592228131,-1036.47,0.000518,120]
[337308309,1725592228156,-151.0,0.00051918,120]
[337308310,1725592228181,-600.0,0.00052,120]
[337308311,1725592228206,-3000.0,0.00052,120]
[337308312,1725592228231,-1000.0,0.00052,120]
[337308313,1725592228257,-1000.0,0.00052,120]
[337308314,1725592228282,-500000.0,0.0005244,30]
[337308315,1725592228307,-151.0,0.0005263,120]
[337308316,1725592228331,-2000.93628492,0.00052835,120]
[337308317,1725592228355,-1000.0,0.00052999,120]
[337308318,1725592228381,-600.0,0.00053,120]
[337308319,1725592228408,-1000.0,0.00053,120]
[337308320,1725592228437,-1000.0,0.00053,120]
[337308321,1725592228463,-185.44302344,0.000533,120]
[337308322,1725592228488,-463.891139,0.00053425,120]
[337308323,1725592228512,-1420.56342284,0.000538,90]
[337308324,1725592228538,-158.40411877,0.000538,120]
[337308325,1725592228563,-5482.51808192,0.00053999,120]
[337308326,1725592228588,-198.16232114,0.00054,120]
[337308327,1725592228614,-600.0,0.00054,120]
[337308328,1725592228639,-1000.0,0.00054,120]
[337308329,1725592228665,-600.0,0.00054246,120]
[337308330,1725592228691,-452.5667169,0.00054246,120]
[337308331,1725592228718,-151.0,0.00054247,120]
[337308332,1725592228744,-500.0,0.0005437,30]
[337308333,1725592228770,-250000.0,0.0005444,30]
[337308334,1725592228800,-151.0,0.00054658,120]
[337308335,1725592228829,-3000.0,0.00054712,120]
[337308336,1725592228858,-1125.66,0.00054794,120]
[337308337,1725592228883,-1125.66,0.00054794,120]
[337308338,1725592228909,-1125.66,0.00054794,120]
[337308339,1725592228934,-1125.66,0.00054794,120]
[337308340,1725592228960,-1125.66,0.00054794,120]
[337308341,1725592228987,-1125.66,0.00054794,120]
[337308342,1725592229015,-1125.66,0.00054794,120]
[337308343,1725592229044,-1125.66,0.00054794,120]
[337308344,1725592229072,-1125.66,0.00054794,120]
[337308345,1725592229099,-1125.66,0.00054794,120]
[337308346,1725592229125,-1125.66,0.00054794,120]
[337308347,1725592229154,-1125.66,0.00054794,120]
[337308348,1725592229181,-1125.66,0.00054794,120]
[337308349,1725592229206,-1125.66,0.00054794,120]
[337308350,1725592229230,-1125.66,0.00054794,120]
[337308351,1725592229255,-1125.66,0.00054794,120]
[337308352,1725592229282,-1125.66,0.00054794,120]
[337308353,1725592229309,-1125.66,0.00054794,120]
[337308354,1725592229336,-1125.66,0.00054794,120]
[337308355,1725592229364,-1125.66,0.00054794,120]
[337308356,1725592229392,-1125.66,0.00054794,120]
[337308357,1725592229417,-1125.66,0.00054794,120]
[337308358,1725592229443,-1125.66,0.00054794,120]
[337308359,1725592229468,-1125.78045611,0.00054794,120]
[337308360,1725592229493,-500.0,0.00054794,120]
[337308361,1725592229518,-500.0,0.00054794,120]
[337308362,1725592229543,-500.0,0.00054794,120]
[337308363,1725592229567,-500.0,0.00054794,120]
[337308364,1725592229591,-500.0,0.00054794,120]
[337308365,1725592229616,-500.0,0.00054794,120]
[337308366,1725592229640,-500.0,0.00054794,120]
[337308367,1725592229666,-500.0,0.00054794,120]
[337308368,1725592229691,-500.0,0.00054794,120]
[337308369,1725592229716,-621.98085874,0.00054794,120]
[337308370,1725592229744,-3500.0,0.00054794,120]
[337308371,1725592229769,-3500.0,0.00054794,120]
[337308372,1725592229797,-3500.0,0.00054794,120]
[337308373,1725592229823,-3500.0,0.00054794,120]
[337308374,1725592229851,-3500.0,0.00054794,120]
[337308375,1725592229877,-3500.0,0.00054794,120]
[337308376,1725592229904,-3500.0,0.00054794,120]
[337308377,1725592229929,-3500.0,0.00054794,120]
[337308378,1725592229955,-3500.0,0.00054794,120]
[337308379,1725592229982,-3500.0,0.00054794,120]
[337308380,1725592230011,-3500.0,0.00054794,120]
[337308381,1725592230037,-3500.0,0.00054794,120]
[337308382,1725592230064,-3413.57143867,0.00054794,120]
[337308383,1725592230089,-500.0,0.00054794,120]
[337308384,1725592230113,-500.0,0.00054794,120]
[337308385,1725592230138,-500.0,0.00054794,120]
[337308386,1725592230164,-500.0,0.00054794,120]
[337308387,1725592230189,-500.0,0.00054794,120]
[337308388,1725592230214,-500.0,0.00054794,120]
[337308389,1725592230240,-500.0,0.00054794,120]
[337308390,1725592230265,-500.0,0.00054794,120]
[337308391,1725592230290,-500.0,0.00054794,120]
[337308392,1725592230315,-500.0,0.00054794,120]
[337308393,1725592230340,-500.0,0.00054794,120]
[337308394,1725592230366,-500.0,0.00054794,120]
[337308395,1725592230392,-500.0,0.00054794,120]
[337308396,1725592230416,-408.85618648,0.00054794,120]
[337308402,1725592233150,3200.0,0.00054794,120]
[337308403,1725592237637,176.30786211,0.00054793,120]
[337308406,1725592238129,3116.0046678,0.00054793,120]
[337308409,1725592238888,-829.44195456,0.00020552,2]
[337308410,1725592238898,-1000.0,0.00020552,2]
[337308411,1725592238908,-1710.91461033,0.00020553,2]
[337308412,1725592238919,-300.0,0.00020574,2]
[337308413,1725592238930,-300.0,0.00020574,2]
[337308414,1725592238943,-500.0,0.00020575,2]
[337308415,1725592238954,-500.0,0.00020575,2]
[337308416,1725592238964,-1860.73,0.00020575,2]
[337308417,1725592238974,-500.0,0.00020575,2]
[337308418,1725592238985,-500.0,0.00020575,2]
[337308419,1725592238996,-500.0,0.00020575,2]
[337308420,1725592239009,-1867.32,0.00020575,2]
[337308421,1725592239142,-500.0,0.00020575,2]
[337308422,1725592239154,-500.0,0.00020575,2]
[337308423,1725592239163,-500.0,0.00020575,2]
[337308424,1725592239173,-500.0,0.00020575,2]
[337308425,1725592239182,-500.0,0.00020575,2]
[337308426,1725592239192,-500.0,0.00020575,2]
[337308427,1725592239201,-572.61,0.00020575,2]
[337308428,1725592239212,-500.0,0.00020575,2]
[337308429,1725592239223,-500.0,0.00020575,2]
[337308430,1725592239233,-1110.41,0.00020575,2]
[337308431,1725592239244,-500.0,0.00020575,2]
[337308432,1725592239254,-972.5,0.00020575,2]
[337308433,1725592239264,-500.0,0.00020575,2]
[337308434,1725592239273,-500.0,0.00020575,2]
[337308435,1725592239283,-500.0,0.00020575,2]
[337308436,1725592239292,-2853.12,0.00020575,2]
[337308437,1725592239301,-169.88362299,0.00020575,2]
[337308438,1725592239310,-737.18,0.00020632,3]
[337308439,1725592239319,-368.59,0.00020632,3]
[337308440,1725592239329,-184.29,0.00020632,3]
[337308441,1725592239339,-552.91,0.00020632,3]
[337308442,1725592239350,-184.1459435,0.00020641,2]
[337308443,1725592239359,-500.0,0.00020641,2]
[337308444,1725592239368,-500.0,0.00020641,2]
[337308445,1725592239377,-500.0,0.00020641,2]
[337308446,1725592239387,-500.0,0.00020641,2]
[337308447,1725592239396,-500.0,0.00020641,2]
[337308448,1725592239406,-500.0,0.00020641,2]
[337308449,1725592239416,-500.0,0.00020641,2]
[337308450,1725592239425,-500.0,0.00020641,2]
[337308451,1725592239435,-500.0,0.00020641,2]
[337308452,1725592239444,-224.42460468,0.00020641,2]
[337308453,1725592239454,-500.0,0.00020641,2]
[337308454,1725592239463,-500.0,0.00020641,2]
[337308455,1725592239472,-500.0,0.00020641,2]
[337308456,1725592239482,-500.0,0.00020641,2]
[337308457,1725592239491,-500.0,0.00020641,2]
[337308458,1725592239502,-500.0,0.00020641,2]
[337308459,1725592239519,-500.0,0.00020641,2]
[337308460,1725592239528,-500.0,0.00020641,2]
[337308461,1725592239538,-500.0,0.00020641,2]
[337308462,1725592239547,-500.0,0.00020641,2]
[337308463,1725592239557,-500.0,0.00020641,2]
[337308464,1725592239566,-500.0,0.00020641,2]
[337308465,1725592239575,-500.0,0.00020641,2]
[337308466,1725592239585,-500.0,0.00020641,2]
[337308467,1725592239594,-500.0,0.00020641,2]
[337308468,1725592239603,-500.0,0.00020641,2]
[337308469,1725592239614,-500.0,0.00020641,2]
[337308470,1725592239624,-500.0,0.00020641,2]
[337308471,1725592239634,-500.0,0.00020641,2]
[337308472,1725592239643,-500.0,0.00020641,2]
[337308473,1725592239654,-500.0,0.00020641,2]
[337308474,1725592239664,-500.0,0.00020641,2]
[337308475,1725592239674,-500.0,0.00020641,2]
[337308476,1725592239684,-500.0,0.00020641,2]
[337308477,1725592239694,-500.0,0.00020641,2]
[337308478,1725592239704,-500.0,0.00020641,2]
[337308479,1725592239714,-500.0,0.00020641,2]
[337308480,1725592239724,-500.0,0.00020641,2]
[337308481,1725592239733,-500.0,0.00020641,2]
[337308482,1725592239743,-500.0,0.00020641,2]
[337308483,1725592239754,-500.0,0.00020641,2]
[337308484,1725592239764,-500.0,0.00020641,2]
[337308485,1725592239774,-500.0,0.00020641,2]
[337308486,1725592239783,-500.0,0.00020641,2]
[337308487,1725592239793,-419.68781894,0.00020641,2]
[337308488,1725592239802,-500.0,0.00020641,2]
[337308489,1725592239812,-500.0,0.00020641,2]
[337308490,1725592239821,-500.0,0.00020641,2]
[337308491,1725592239831,-500.0,0.00020641,2]
[337308492,1725592239839,-588.82876894,0.00020641,2]
[337308493,1725592239849,-588.82876894,0.00020641,2]
[337308494,1725592239859,-588.82876894,0.00020641,2]
[337308495,1725592239868,-588.82876894,0.00020641,2]
[337308496,1725592239879,-588.82876894,0.00020641,2]
[337308497,1725592239890,-588.82876894,0.00020641,2]
[337308498,1725592239900,-588.82876894,0.00020641,2]
[337308499,1725592239911,-588.82876894,0.00020641,2]
[337308500,1725592239923,-588.82876894,0.00020641,2]
[337308501,1725592239934,-588.82876894,0.00020641,2]